fUST/lending_fUST_20250828
["ID","MTS","AMOUNT","RATE_DAILY","PERIOD"]
[381862805,1756374655231,-397.1809285,0.000196,2]
[381862807,1756374655241,-151.0,0.000196,2]
[381862809,1756374655250,-151.0,0.000196,2]
[381862811,1756374655259,-151.0,0.000196,2]
[381862813,1756374655269,-162.226642,0.000196,2]
[381862815,1756374655279,-162.226642,0.000196,2]
[381862817,1756374655288,-162.226642,0.000196,2]
[381862819,1756374655298,-162.226634,0.000196,2]
[381862821,1756374655307,-151.0,0.00019626,2]
[381862823,1756374655319,-173.66815185,0.00019626,2]
[381862825,1756374655328,-2279.51,0.00019663,2]
[381862827,1756374655338,-2453.81996093,0.00019674,2]
[381862829,1756374655348,-151.0,0.000197,2]
[381862831,1756374655357,-151.0,0.000197,2]
[381862833,1756374655367,-1000.0,0.00019721,2]
[381862835,1756374655378,-500.0,0.00019721,2]
[381862837,1756374655388,-500.0,0.00019721,2]
[381862839,1756374655398,-1000.0,0.00019721,2]
[381862841,1756374655407,-500.0,0.00019721,2]
[381862843,1756374655417,-500.0,0.00019721,2]
[381862845,1756374655427,-1000.0,0.00019721,2]
[381862848,1756374655438,-1000.0,0.00019721,2]
[381862850,1756374655449,-1000.0,0.00019721,2]
[381862852,1756374655459,-1000.0,0.00019721,2]
[381862854,1756374655468,-500.0,0.00019721,2]
[381862856,1756374655478,-1000.0,0.00019721,2]
[381862858,1756374655487,-1000.0,0.00019721,2]
[381862860,1756374655497,-1000.0,0.00019721,2]
[381862862,1756374655506,-1000.0,0.00019721,2]
[381862864,1756374655516,-151.0,0.00019721,2]
[381862866,1756374655526,-198.86072,0.00019721,2]
[381862868,1756374655537,-151.0,0.00019721,2]
[381862870,1756374655547,-151.0,0.00019721,2]
[381862872,1756374655557,-151.0,0.00019721,2]
[381862874,1756374655566,-548.47899243,0.00019726,2]
[381862876,1756374655576,-151.0,0.00019726,2]
[381862878,1756374655585,-502.21395486,0.00019726,2]
[381862880,1756374655595,-151.0,0.00019726,2]
[381862882,1756374655605,-151.0,0.00019726,2]
[381862884,1756374655615,-200.48446753,0.00019726,2]
[381862886,1756374655625,-1115.0,0.00019726,2]
[381862888,1756374655635,-500.0,0.00019726,2]
[381862890,1756374655645,-151.0,0.00019726,2]
[381862892,1756374655655,-151.0,0.00019726,2]
[381862894,1756374655664,-151.0,0.00019726,2]
[381862897,1756374655674,-151.0,0.00019726,2]
[381862899,1756374655684,-151.0,0.00019726,2]
[381862901,1756374655694,-151.0,0.00019726,2]
[381862903,1756374655703,-500.0,0.00019726,2]
[381862905,1756374655713,-587.67889797,0.00019726,2]
[381862907,1756374655723,-500.0,0.00019726,2]
[381862909,1756374655732,-504.78536609,0.00019726,2]
[381862911,1756374655742,-151.0,0.00019726,2]
[381862913,1756374655751,-480.0,0.00019726,2]
[381862915,1756374655760,-480.0,0.00019726,2]
[381862917,1756374655770,-480.0,0.00019726,2]
[381862919,1756374655779,-817.93,0.00019726,2]
[381862921,1756374655789,-480.0,0.00019726,2]
[381862923,1756374655798,-572.54,0.00019726,2]
[381862925,1756374655807,-151.0,0.00019726,2]
[381862927,1756374655817,-480.0,0.00019726,2]
[381862929,1756374655826,-480.0,0.00019726,2]
[381862931,1756374655836,-480.0,0.00019726,2]
[381862933,1756374655845,-480.0,0.00019726,2]
[381862935,1756374655855,-560.92,0.00019726,2]
[381862937,1756374655864,-480.0,0.00019726,2]
[381862939,1756374655874,-480.0,0.00019726,2]
[381862941,1756374655887,-151.0,0.00019726,2]
[381862943,1756374655897,-151.0,0.00019726,2]
[381862945,1756374655907,-480.0,0.00019726,2]
[381862947,1756374655916,-480.0,0.00019726,2]
[381862949,1756374655925,-480.0,0.00019726,2]
[381862951,1756374655935,-480.0,0.00019726,2]
[381862953,1756374655944,-290.1613484,0.00019726,2]
[381862955,1756374655954,-480.0,0.00019726,2]
[381862957,1756374655963,-480.0,0.00019726,2]
[381862959,1756374655972,-555.9,0.00019726,2]
[381862961,1756374655982,-480.0,0.00019726,2]
[381862963,1756374655991,-480.0,0.00019726,2]
[381862965,1756374656000,-734.05,0.00019726,2]
[381862967,1756374656010,-480.0,0.00019726,2]
[381862969,1756374656019,-558.57,0.00019726,2]
[381862971,1756374656030,-480.0,0.00019726,2]
[381862973,1756374656039,-480.0,0.00019726,2]
[381862975,1756374656049,-781.57,0.00019726,2]
[381862977,1756374656058,-486.76,0.00019726,2]
[381862979,1756374656068,-480.0,0.00019726,2]
[381862981,1756374656077,-480.0,0.00019726,2]
[381862983,1756374656087,-415.35213037,0.00019726,2]
[381862986,1756374656097,-151.0,0.00019726,2]
[381862988,1756374656107,-151.0,0.00019726,2]
[381862990,1756374656116,-704.44,0.00019726,2]
[381862992,1756374656125,-151.0,0.00019726,2]
[381862994,1756374656135,-252.608,0.00019726,2]
[381862996,1756374656145,-480.0,0.00019726,2]
[381862998,1756374656155,-480.0,0.00019726,2]
[381863000,1756374656165,-480.0,0.00019726,2]
[381863002,1756374656174,-480.0,0.00019726,2]
[381863004,1756374656184,-480.0,0.00019726,2]
[381863006,1756374656193,-480.0,0.00019726,2]
[381863008,1756374656203,-480.0,0.00019726,2]
[381863010,1756374656213,-480.0,0.00019726,2]
[381863012,1756374656222,-480.0,0.00019726,2]
[381863014,1756374656233,-480.0,0.00019726,2]
[381863016,1756374656243,-480.0,0.00019726,2]
[381863018,1756374656252,-480.0,0.00019726,2]
[381863020,1756374656261,-152.724964,0.00019726,2]
[381863022,1756374656271,-480.0,0.00019726,2]
[381863024,1756374656281,-1720.92,0.00019726,2]
[381863026,1756374656290,-480.0,0.00019726,2]
[381863028,1756374656299,-480.0,0.00019726,2]
[381863030,1756374656309,-585.72,0.00019726,2]
[381863032,1756374656318,-480.0,0.00019726,2]
[381863034,1756374656328,-480.0,0.00019726,2]
[381863036,1756374656338,-481.32,0.00019726,2]
[381863038,1756374656349,-480.0,0.00019726,2]
[381863040,1756374656361,-151.0,0.00019726,2]
[381863042,1756374656371,-151.45,0.00019726,2]
[381863044,1756374656380,-480.0,0.00019726,2]
[381863046,1756374656389,-480.0,0.00019726,2]
[381863048,1756374656399,-480.0,0.00019726,2]
[381863050,1756374656408,-585.11,0.00019726,2]
[381863052,1756374656418,-480.0,0.00019726,2]
[381863054,1756374656427,-480.0,0.00019726,2]
[381863056,1756374656436,-995.31,0.00019726,2]
[381863058,1756374656446,-480.0,0.00019726,2]
[381863060,1756374656455,-219.46325371,0.00019726,2]
[381863062,1756374656465,-522.86,0.00019726,2]
[381863064,1756374656475,-480.0,0.00019726,2]
[381863066,1756374656485,-480.0,0.00019726,2]
[381863068,1756374656503,-480.0,0.00019726,2]
[381863070,1756374656517,-481.29028811,0.00019726,2]
[381863071,1756374656527,-720.53,0.00019726,2]
[381863072,1756374656536,-511.94,0.00019726,2]
[381863074,1756374656546,-480.0,0.00019726,2]
[381863076,1756374656556,-480.0,0.00019726,2]
[381863077,1756374656566,-151.0,0.00019726,2]
[381863078,1756374656580,-480.0,0.00019726,2]
[381863079,1756374656595,-570.7,0.00019726,2]
[381863080,1756374656605,-480.0,0.00019726,2]
[381863081,1756374656614,-176.44536165,0.00019726,2]
[381863083,1756374656624,-480.0,0.00019726,2]
[381863084,1756374656635,-358.984101,0.00019726,2]
[381863085,1756374656645,-828.87,0.00019726,2]
[381863086,1756374656655,-480.0,0.00019726,2]
[381863087,1756374656665,-259.118199,0.00019726,2]
[381863088,1756374656675,-480.0,0.00019726,2]
[381863089,1756374656684,-480.0,0.00019726,2]
[381863090,1756374656694,-669.72,0.00019726,2]
[381863091,1756374656704,-1302.91,0.00019726,2]
[381863092,1756374656713,-480.0,0.00019726,2]
[381863093,1756374656723,-480.0,0.00019726,2]
[381863094,1756374656732,-480.0,0.00019726,2]
[381863095,1756374656742,-725.42,0.00019726,2]
[381863096,1756374656751,-480.0,0.00019726,2]
[381863097,1756374656761,-480.0,0.00019726,2]
[381863098,1756374656771,-609.77650202,0.00019726,2]
[381863099,1756374656781,-480.0,0.00019726,2]
[381863100,1756374656790,-480.0,0.00019726,2]
[381863101,1756374656800,-619.98859574,0.00019726,2]
[381863102,1756374656810,-480.0,0.00019726,2]
[381863103,1756374656820,-532.21,0.00019726,2]
[381863104,1756374656830,-480.0,0.00019726,2]
[381863105,1756374656840,-212.240156,0.00019726,2]
[381863106,1756374656849,-480.0,0.00019726,2]
[381863107,1756374656859,-480.0,0.00019726,2]
[381863108,1756374656868,-480.0,0.00019726,2]
[381863109,1756374656879,-480.0,0.00019726,2]
[381863110,1756374656892,-555.6,0.00019726,2]
[381863111,1756374656901,-480.0,0.00019726,2]
[381863112,1756374656911,-480.0,0.00019726,2]
[381863113,1756374656920,-480.0,0.00019726,2]
[381863114,1756374656931,-480.0,0.00019726,2]
[381863115,1756374656940,-561.08,0.00019726,2]
[381863116,1756374656950,-480.0,0.00019726,2]
[381863117,1756374656961,-167.485616,0.00019726,2]
[381863118,1756374656970,-167.485616,0.00019726,2]
[381863119,1756374656980,-151.0,0.00019726,2]
[381863120,1756374656991,-480.0,0.00019726,2]
[381863121,1756374657000,-151.0,0.00019726,2]
[381863122,1756374657010,-167.485616,0.00019726,2]
[381863123,1756374657020,-167.485616,0.00019726,2]
[381863124,1756374657029,-480.0,0.00019726,2]
[381863125,1756374657039,-167.485616,0.00019726,2]
[381863126,1756374657049,-167.485616,0.00019726,2]
[381863127,1756374657059,-167.485616,0.00019726,2]
[381863128,1756374657069,-167.485608,0.00019726,2]
[381863129,1756374657079,-495.2,0.00019726,2]
[381863130,1756374657089,-151.0,0.00019726,2]
[381863131,1756374657099,-151.0,0.00019726,2]
[381863132,1756374657274,-480.0,0.00019726,2]
[381863133,1756374657284,-480.0,0.00019726,2]
[381863134,1756374657294,-619.46,0.00019726,2]
[381863135,1756374657303,-563.64,0.00019726,2]
[381863136,1756374657313,-480.0,0.00019726,2]
[381863137,1756374657322,-517.99,0.00019726,2]
[381863138,1756374657331,-480.0,0.00019726,2]
[381863139,1756374657340,-480.0,0.00019726,2]
[381863140,1756374657349,-576.2,0.00019726,2]
[381863141,1756374657358,-677.45,0.00019726,2]
[381863142,1756374657368,-480.0,0.00019726,2]
[381863143,1756374657378,-151.0,0.00019726,2]
[381863144,1756374657388,-151.0,0.00019726,2]
[381863145,1756374657397,-480.0,0.00019726,2]
[381863146,1756374657406,-480.0,0.00019726,2]
[381863147,1756374657415,-1222.54,0.00019726,2]
[381863148,1756374657425,-480.0,0.00019726,2]
[381863149,1756374657434,-151.0,0.00019726,2]
[381863150,1756374657443,-663.83,0.00019726,2]
[381863151,1756374657452,-480.0,0.00019726,2]
[381863152,1756374657462,-788.07,0.00019726,2]
[381863153,1756374657471,-480.0,0.00019726,2]
[381863154,1756374657481,-480.0,0.00019726,2]
[381863155,1756374657491,-480.0,0.00019726,2]
[381863156,1756374657501,-930.13,0.00019726,2]
[381863157,1756374657510,-480.0,0.00019726,2]
[381863158,1756374657520,-480.0,0.00019726,2]
[381863159,1756374657530,-480.0,0.00019726,2]
[381863160,1756374657539,-480.0,0.00019726,2]
[381863161,1756374657549,-480.0,0.00019726,2]
[381863162,1756374657559,-699.68,0.00019726,2]
[381863163,1756374657568,-480.0,0.00019726,2]
[381863164,1756374657578,-480.0,0.00019726,2]
[381863165,1756374657588,-482.07403029,0.00019726,2]
[381863166,1756374657597,-535.76,0.00019726,2]
[381863167,1756374657606,-493.51,0.00019726,2]
[381863168,1756374657616,-480.0,0.00019726,2]
[381863169,1756374657625,-480.0,0.00019726,2]
[381863170,1756374657635,-480.0,0.00019726,2]
[381863171,1756374657645,-480.0,0.00019726,2]
[381863172,1756374657655,-877.7,0.00019726,2]
[381863173,1756374657664,-515.15,0.00019726,2]
[381863174,1756374657674,-480.0,0.00019726,2]
[381863175,1756374657683,-480.0,0.00019726,2]
[381863176,1756374657693,-480.0,0.00019726,2]
[381863177,1756374657702,-826.64,0.00019726,2]
[381863178,1756374657712,-480.0,0.00019726,2]
[381863179,1756374657722,-480.0,0.00019726,2]
[381863180,1756374657731,-273.0568914,0.00019726,2]
[381863181,1756374657741,-480.88241258,0.00019726,2]
[381863182,1756374657752,-480.0,0.00019726,2]
[381863183,1756374657762,-569.49,0.00019726,2]
[381863184,1756374657771,-530.29042261,0.00019726,2]
[381863185,1756374657781,-480.0,0.00019726,2]
[381863186,1756374657790,-480.0,0.00019726,2]
[381863187,1756374657800,-480.0,0.00019726,2]
[381863188,1756374657809,-480.0,0.00019726,2]
[381863189,1756374657818,-480.0,0.00019726,2]
[381863190,1756374657827,-1609.66,0.00019726,2]
[381863191,1756374657836,-480.0,0.00019726,2]
[381863192,1756374657846,-480.0,0.00019726,2]
[381863193,1756374657855,-480.0,0.00019726,2]
[381863194,1756374657865,-480.0,0.00019726,2]
[381863195,1756374657874,-480.0,0.00019726,2]
[381863196,1756374657888,-151.0,0.00019726,2]
[381863197,1756374657898,-227.624154,0.00019726,2]
[381863198,1756374657907,-480.0,0.00019726,2]
[381863199,1756374657917,-480.0,0.00019726,2]
[381863200,1756374657927,-227.624154,0.00019726,2]
[381863201,1756374657936,-227.624154,0.00019726,2]
[381863202,1756374657946,-480.0,0.00019726,2]
[381863203,1756374657956,-227.624146,0.00019726,2]
[381863204,1756374657966,-480.0,0.00019726,2]
[381863205,1756374657976,-218.277584,0.00019726,2]
[381863206,1756374657985,-480.0,0.00019726,2]
[381863207,1756374657995,-480.0,0.00019726,2]
[381863208,1756374658004,-480.0,0.00019726,2]
[381863209,1756374658014,-480.0,0.00019726,2]
[381863210,1756374658024,-480.0,0.00019726,2]
[381863211,1756374658033,-480.0,0.00019726,2]
[381863212,1756374658043,-480.0,0.00019726,2]
[381863213,1756374658053,-480.0,0.00019726,2]
[381863214,1756374658063,-480.0,0.00019726,2]
[381863215,1756374658072,-151.0,0.00019726,2]
[381863216,1756374658081,-480.0,0.00019726,2]
[381863217,1756374658091,-1077.87,0.00019726,2]
[381863218,1756374658101,-151.0,0.00019726,2]
[381863219,1756374658110,-151.0,0.00019726,2]
[381863220,1756374658120,-480.0,0.00019726,2]
[381863221,1756374658130,-480.0,0.00019726,2]
[381863222,1756374658140,-480.0,0.00019726,2]
[381863223,1756374658149,-480.0,0.00019726,2]
[381863224,1756374658159,-483.59697002,0.00019726,2]
[381863225,1756374658168,-480.0,0.00019726,2]
[381863226,1756374658177,-571.71,0.00019726,2]
[381863227,1756374658187,-480.0,0.00019726,2]
[381863228,1756374658196,-480.0,0.00019726,2]
[381863229,1756374658206,-733.78,0.00019726,2]
[381863230,1756374658215,-480.0,0.00019726,2]
[381863231,1756374658224,-480.0,0.00019726,2]
[381863232,1756374658233,-151.0,0.00019726,2]
[381863233,1756374658243,-480.0,0.00019726,2]
[381863234,1756374658252,-480.0,0.00019726,2]
[381863235,1756374658262,-480.0,0.00019726,2]
[381863236,1756374658272,-480.0,0.00019726,2]
[381863237,1756374658281,-151.0,0.00019726,2]
[381863238,1756374658291,-588.15,0.00019726,2]
[381863239,1756374658300,-480.0,0.00019726,2]
[381863240,1756374658309,-480.0,0.00019726,2]
[381863241,1756374658319,-480.0,0.00019726,2]
[381863242,1756374658328,-480.0,0.00019726,2]
[381863243,1756374658338,-480.0,0.00019726,2]
[381863244,1756374658347,-480.0,0.00019726,2]
[381863245,1756374658357,-480.0,0.00019726,2]
[381863246,1756374658367,-480.0,0.00019726,2]
[381863247,1756374658376,-461.3266414,0.00019726,2]
[381863248,1756374658387,-480.0,0.00019726,2]
[381863249,1756374658396,-720.68,0.00019726,2]
[381863250,1756374658406,-506.2,0.00019726,2]
[381863251,1756374658415,-480.0,0.00019726,2]
[381863252,1756374658425,-480.0,0.00019726,2]
[381863253,1756374658435,-468.25144743,0.00019726,2]
[381863254,1756374658445,-480.0,0.00019726,2]
[381863255,1756374658454,-480.0,0.00019726,2]
[381863256,1756374658464,-627.59,0.00019726,2]
[381863257,1756374658473,-378.73853728,0.00019726,2]
[381863258,1756374658483,-480.0,0.00019726,2]
[381863259,1756374658493,-480.0,0.00019726,2]
[381863260,1756374658502,-480.0,0.00019726,2]
[381863261,1756374658512,-480.0,0.00019726,2]
[381863262,1756374658522,-480.0,0.00019726,2]
[381863263,1756374658532,-480.0,0.00019726,2]
[381863264,1756374658541,-480.0,0.00019726,2]
[381863265,1756374658551,-480.0,0.00019726,2]
[381863266,1756374658560,-480.0,0.00019726,2]
[381863267,1756374658569,-524.45,0.00019726,2]
[381863268,1756374658579,-480.0,0.00019726,2]
[381863269,1756374658588,-480.0,0.00019726,2]
[381863270,1756374658598,-480.62,0.00019726,2]
[381863271,1756374658607,-480.0,0.00019726,2]
[381863272,1756374658616,-1395.98,0.00019726,2]
[381863273,1756374658625,-480.0,0.00019726,2]
[381863274,1756374658634,-480.0,0.00019726,2]
[381863275,1756374658643,-480.0,0.00019726,2]
[381863276,1756374658652,-480.0,0.00019726,2]
[381863277,1756374658662,-660.88,0.00019726,2]
[381863278,1756374658672,-480.0,0.00019726,2]
[381863279,1756374658681,-480.0,0.00019726,2]
[381863280,1756374658690,-480.0,0.00019726,2]
[381863281,1756374658699,-319.73697056,0.00019726,2]
[381863282,1756374658709,-480.0,0.00019726,2]
[381863283,1756374658718,-480.0,0.00019726,2]
[381863284,1756374658727,-480.0,0.00019726,2]
[381863285,1756374658736,-1022.26,0.00019726,2]
[381863286,1756374658745,-480.0,0.00019726,2]
[381863287,1756374658754,-491.34,0.00019726,2]
[381863288,1756374658764,-480.0,0.00019726,2]
[381863289,1756374658773,-480.0,0.00019726,2]
[381863290,1756374658783,-480.0,0.00019726,2]
[381863291,1756374658792,-480.0,0.00019726,2]
[381863292,1756374658801,-5263.61,0.00019726,2]
[381863293,1756374658811,-1219.52,0.00019726,2]
[381863294,1756374658820,-480.0,0.00019726,2]
[381863295,1756374658829,-910.61,0.00019726,2]
[381863296,1756374658838,-480.0,0.00019726,2]
[381863297,1756374658847,-799.11,0.00019726,2]
[381863298,1756374658856,-480.0,0.00019726,2]
[381863299,1756374658866,-480.0,0.00019726,2]
[381863300,1756374658875,-962.73,0.00019726,2]
[381863301,1756374658888,-480.0,0.00019726,2]
[381863302,1756374658897,-480.0,0.00019726,2]
[381863303,1756374658906,-480.0,0.00019726,2]
[381863304,1756374658916,-480.0,0.00019726,2]
[381863305,1756374658925,-1264.26,0.00019726,2]
[381863306,1756374658936,-1087.77,0.00019726,2]
[381863307,1756374658945,-480.0,0.00019726,2]
[381863308,1756374658955,-480.0,0.00019726,2]
[381863309,1756374658965,-480.0,0.00019726,2]
[381863310,1756374658975,-632.17,0.00019726,2]
[381863311,1756374658985,-480.0,0.00019726,2]
[381863312,1756374658995,-481.85,0.00019726,2]
[381863313,1756374659004,-480.0,0.00019726,2]
[381863314,1756374659013,-486.51504379,0.00019726,2]
[381863315,1756374659023,-480.0,0.00019726,2]
[381863316,1756374659032,-480.0,0.00019726,2]
[381863317,1756374659041,-688.06,0.00019726,2]
[381863318,1756374659051,-480.0,0.00019726,2]
[381863319,1756374659060,-711.83799071,0.00019726,2]
[381863320,1756374659343,-1263.79200929,0.00019726,2]
[381863321,1756374659352,-1257.87,0.00019726,2]
[381863322,1756374659361,-480.0,0.00019726,2]
[381863323,1756374659370,-480.0,0.00019726,2]
[381863324,1756374659379,-1526.07,0.00019726,2]
[381863325,1756374659388,-2014.39,0.00019726,2]
[381863326,1756374659397,-2985.01,0.00019726,2]
[381863327,1756374659406,-222.85630151,0.00019726,2]
[381863328,1756374659416,-480.0,0.00019726,2]
[381863329,1756374659425,-506.99,0.00019726,2]
[381863330,1756374659434,-590.14,0.00019726,2]
[381863331,1756374659444,-480.0,0.00019726,2]
[381863332,1756374659499,-480.0,0.00019726,2]
[381863333,1756374659509,-480.0,0.00019726,2]
[381863334,1756374659518,-3385.74,0.00019726,2]
[381863335,1756374659527,-480.0,0.00019726,2]
[381863336,1756374659537,-480.0,0.00019726,2]
[381863337,1756374659546,-2133.5,0.00019726,2]
[381863338,1756374659555,-963.83,0.00019726,2]
[381863339,1756374659564,-522.19,0.00019726,2]
[381863340,1756374659574,-480.0,0.00019726,2]
[381863341,1756374659583,-481.97826303,0.00019726,2]
[381863342,1756374659593,-480.0,0.00019726,2]
[381863343,1756374659602,-2662.14,0.00019726,2]
[381863344,1756374659611,-2847.06,0.00019726,2]
[381863345,1756374659620,-480.0,0.00019726,2]
[381863346,1756374659629,-480.0,0.00019726,2]
[381863347,1756374659638,-614.09,0.00019726,2]
[381863348,1756374659648,-480.0,0.00019726,2]
[381863349,1756374659657,-642.85,0.00019726,2]
[381863350,1756374659666,-480.0,0.00019726,2]
[381863351,1756374659675,-480.0,0.00019726,2]
[381863352,1756374659683,-480.0,0.00019726,2]
[381863353,1756374659690,-491.45,0.00019726,2]
[381863354,1756374659698,-480.0,0.00019726,2]
[381863355,1756374659706,-480.0,0.00019726,2]
[381863356,1756374659714,-500.19,0.00019726,2]
[381863357,1756374659722,-1136.22,0.00019726,2]
[381863358,1756374659731,-615.63,0.00019726,2]
[381863359,1756374659739,-480.0,0.00019726,2]
[381863360,1756374659747,-1089.68,0.00019726,2]
[381863361,1756374659755,-480.0,0.00019726,2]
[381863362,1756374659764,-480.0,0.00019726,2]
[381863363,1756374659772,-586.22,0.00019726,2]
[381863364,1756374659781,-480.0,0.00019726,2]
[381863365,1756374659790,-775.03,0.00019726,2]
[381863366,1756374659799,-925.56,0.00019726,2]
[381863367,1756374659808,-480.0,0.00019726,2]
[381863368,1756374659817,-480.0,0.00019726,2]
[381863369,1756374659827,-480.0,0.00019726,2]
[381863370,1756374659836,-2664.06,0.00019726,2]
[381863371,1756374659845,-480.0,0.00019726,2]
[381863372,1756374659855,-480.0,0.00019726,2]
[381863373,1756374659864,-765.4,0.00019726,2]
[381863374,1756374659873,-480.0,0.00019726,2]
[381863375,1756374659886,-2062.85,0.00019726,2]
[381863376,1756374659896,-480.0,0.00019726,2]
[381863377,1756374659905,-2876.62,0.00019726,2]
[381863378,1756374659914,-382.11898513,0.00019726,2]
[381863379,1756374659923,-577.57,0.00019726,2]
[381863380,1756374659932,-480.0,0.00019726,2]
[381863381,1756374659942,-480.0,0.00019726,2]
[381863382,1756374659951,-843.8,0.00019726,2]
[381863383,1756374659960,-480.0,0.00019726,2]
[381863384,1756374659970,-480.0,0.00019726,2]
[381863385,1756374659979,-480.0,0.00019726,2]
[381863386,1756374659988,-1818.53,0.00019726,2]
[381863387,1756374659997,-480.0,0.00019726,2]
[381863388,1756374660006,-480.0,0.00019726,2]
[381863389,1756374660015,-482.25436379,0.00019726,2]
[381863390,1756374660025,-760.45,0.00019726,2]
[381863391,1756374660035,-480.0,0.00019726,2]
[381863392,1756374660044,-480.0,0.00019726,2]
[381863393,1756374660054,-552.79837292,0.00019726,2]
[381863394,1756374660063,-4366.98,0.00019726,2]
[381863395,1756374660074,-913.93,0.00019726,2]
[381863396,1756374660083,-1424.65,0.00019726,2]
[381863397,1756374660093,-617.68,0.00019726,2]
[381863398,1756374660103,-480.0,0.00019726,2]
[381863399,1756374660112,-480.0,0.00019726,2]
[381863400,1756374660122,-480.0,0.00019726,2]
[381863401,1756374660132,-480.0,0.00019726,2]
[381863402,1756374660141,-480.0,0.00019726,2]
[381863403,1756374660151,-1485.99,0.00019726,2]
[381863404,1756374660160,-659.13,0.00019726,2]
[381863405,1756374660169,-1849.47,0.00019726,2]
[381863406,1756374660178,-465.37285548,0.00019726,2]
[381863407,1756374660187,-480.0,0.00019726,2]
[381863408,1756374660196,-480.0,0.00019726,2]
[381863409,1756374660205,-3127.98,0.00019726,2]
[381863410,1756374660214,-480.0,0.00019726,2]
[381863411,1756374660223,-660.09,0.00019726,2]
[381863412,1756374660232,-900.96,0.00019726,2]
[381863413,1756374660240,-480.0,0.00019726,2]
[381863414,1756374660249,-480.0,0.00019726,2]
[381863415,1756374660259,-480.0,0.00019726,2]
[381863416,1756374660268,-1287.7,0.00019726,2]
[381863417,1756374660278,-480.0,0.00019726,2]
[381863418,1756374660288,-3417.81,0.00019726,2]
[381863419,1756374660298,-2187.56,0.00019726,2]
[381863420,1756374660307,-480.0,0.00019726,2]
[381863421,1756374660316,-835.81,0.00019726,2]
[381863422,1756374660325,-480.0,0.00019726,2]
[381863423,1756374660334,-480.0,0.00019726,2]
[381863424,1756374660343,-480.0,0.00019726,2]
[381863425,1756374660353,-683.02,0.00019726,2]
[381863426,1756374660362,-480.0,0.00019726,2]
[381863427,1756374660371,-524.52,0.00019726,2]
[381863428,1756374660380,-480.0,0.00019726,2]
[381863429,1756374660390,-480.0,0.00019726,2]
[381863430,1756374660399,-480.0,0.00019726,2]
[381863431,1756374660409,-480.0,0.00019726,2]
[381863432,1756374660419,-480.0,0.00019726,2]
[381863433,1756374660428,-480.0,0.00019726,2]
[381863434,1756374660438,-6557.2,0.00019726,2]
[381863435,1756374660447,-582.87,0.00019726,2]
[381863436,1756374660457,-480.0,0.00019726,2]
[381863437,1756374660466,-480.0,0.00019726,2]
[381863438,1756374660476,-480.0,0.00019726,2]
[381863439,1756374660486,-480.0,0.00019726,2]
[381863440,1756374660495,-3057.06,0.00019726,2]
[381863441,1756374660504,-537.11,0.00019726,2]